Cogmind - Beta 17.1 @@@ ROGUE MODE // 2026.09.07 @ 20:52:04 Player: Deloads Result: Destroyed by S-10 Pest with Light Assault Rifle Performance ------------- Evolutions (0) 0 Regions Visited (4) 800 Robots Destroyed (19) 95 Value Destroyed (158) 158 Prototype IDs (23) 460 Alien Tech Used (0) 0 Bonus (300) 300 TOTAL SCORE: 1813 Bonus ------- Aligned with FarCom 300 Cogmind --------- Core Integrity 0/250 Matter 277/300 Energy 99/100 System Corruption 0% Temperature Cool (0) Movement Rolling (135) Ox3 Location -9/Mines Parts ------- > --- POWER (1) -------- (None) > --- PROPULSION (2) --- Wheel Compact Wheel > --- UTILITY (2) ------ Huge Storage Unit Targeting Computer > --- WEAPON (2) ------- Light Assault Rifle > --- INVENTORY (25) --- Light Treads Aluminum Leg Aluminum Leg Flight Unit Flight Unit Small Storage Unit High-capacity Storage Unit Structural Scanner Terrain Scanner Seismic Detector Targeting Computer Cloak of Protection Light Assault Rifle Peak State ------------ > --- POWER ------------ Light Ion Engine > --- PROPULSION ------- Light Treads Light Treads > --- UTILITY ---------- Huge Storage Unit Seismic Detector > --- WEAPON ----------- Assault Rifle Light Assault Rifle > --- INVENTORY -------- Light Ion Engine Aluminum Leg Aluminum Leg Wheel Compact Wheel Flight Unit Small Storage Unit High-capacity Storage Unit Terrain Scanner Light Assault Rifle [Rating: 8] Favorites ----------- Power Light Ion Engine Engine Light Ion Engine Propulsion Light Treads Treads Light Treads Wheel Compact Wheel Utility Huge Storage Unit Device Seismic Detector Storage Huge Storage Unit Processor Targeting Computer Weapon Assault Rifle Ballistic Gun Assault Rifle Build | -11 -10 -10 -10 -9 ------- Run | Yrd Mat Min Exi Min Slots Evolved . | . . . . . Power . | . . . . . Propulsion . | . . . . . Utility . | . . . . . Weapon . | . . . . . Parts Attached 13 | 7 4 . 2 . Power 2 | 1 1 . . . Engine 2 | 1 1 . . . Core . | . . . . . Reactor . | . . . . . Propulsion 4 | 2 . . 2 . Treads 2 | 2 . . . . Leg . | . . . . . Wheel 2 | . . . 2 . Hover . | . . . . . Flight . | . . . . . Utility 5 | 2 3 . . . Device 1 | 1 . . . . Storage 3 | 1 2 . . . Processor 1 | . 1 . . . Hackware . | . . . . . Protection . | . . . . . Artifact . | . . . . . Weapon 2 | 2 . . . . Energy Gun . | . . . . . Energy Cannon . | . . . . . Ballistic Gun 2 | 2 . . . . Ballistic Cannon . | . . . . . Launcher . | . . . . . Special Weapon . | . . . . . Impact Weapon . | . . . . . Slashing Weapon . | . . . . . Piercing Weapon . | . . . . . Special Melee Weapon . | . . . . . Unidentified Prototypes . | . . . . . Parts Lost 4 | . 3 . . 1 Power 2 | . 2 . . . Propulsion 1 | . 1 . . . Utility . | . . . . . Weapon 1 | . . . . 1 Highest Loss Streak 2 | . 2 . . 1 To Critical Strikes 1 | . 1 . . . Average Backups 11 | 4 10 13 13 13 Power . | . . . . . Propulsion 5 | 2 5 6 5 5 Utility 4 | . 3 6 6 7 Weapon . | . 1 1 1 1 Tool/Special . | . . . . . Unused Backups 9 | . . . . 9 Power . | . . . . . Propulsion 4 | . . . . 4 Utility 4 | . . . . 4 Weapon 1 | . . . . 1 Tool/Special . | . . . . . Average Slot Usage (%) 85 | . 98 71 71 78 Engine 7 | . 13 . . . Treads 20 | . 27 14 13 . Device 4 | . 9 . . . Storage 14 | . 14 14 14 14 Processor 8 | . 4 14 14 14 Ballistic Gun 27 | . 28 28 28 21 Peak Build Rating 8 | 7 8 6 8 8 Average Rating 6 | 5 7 6 6 7 On Entrance 5 | . 7 6 6 8 Avg Prop Armor Cover (%) . | . . . . . Naked Turns . | . . . . . Heaviest Build 87 | 12 87 83 83 . Greatest Support 40 | 40 40 20 26 . Greatest Overweight (x) 4 | . 4 4 4 . Average Overweight (x) 2 | . 1 4 3 . Largest Inventory Capacity 25 | 8 25 25 25 25 Average Capacity 23 | 7 24 25 25 25 Most Carried 14 | 6 13 13 14 13 Average Carried 11 | 4 10 13 13 13 Final Capacity 25 | 8 25 25 25 25 Final Carried 13 | 6 13 13 13 13 Class Distribution -------------------- 100% | Mutant Dominant Class ---------------- Mutant | -10/Materials Mutant | -10/Mines Mutant | -10/Exiles Mutant | -9/Mines Resources | -11 -10 -10 -10 -9 ----------- Run | Yrd Mat Min Exi Min Matter Collected 462 | 322 140 . . . Remotely . | . . . . . Salvage Created 406 | 108 286 . . 12 Parts 43 | 8 34 . . 1 Haulers Intercepted . | . . . . . Recyclers Shooed 1 | 1 . . . . Parts Field Recycled . | . . . . . Retrieved Matter . | . . . . . Parts Self-Destructed . | . . . . . Prevented . | . . . . . Parts Restored . | . . . . . Kills | -11 -10 -10 -10 -9 ------- Run | Yrd Mat Min Exi Min Combat Hostiles Destroyed 12 | . 11 . . 1 Guns 12 | . 11 . . 1 Classes Destroyed 5 | 3 2 . . . Worker 3 | 1 2 . . . Tunneler 1 | 1 . . . . Recycler 2 | 1 1 . . . Operator 1 | . 1 . . . Swarmer 12 | . 11 . . 1 Best Kill Streak 6 | 2 6 . . 1 Combat Bots Only 3 | . 3 . . 1 Max Kills in Single Turn 2 | 1 2 . . 1 Gunslinging 1 | . 1 . . . Exploded . | . . . . . Melee . | . . . . . Uniques/NPCs Destroyed . | . . . . . Combat | -11 -10 -10 -10 -9 -------- Run | Yrd Mat Min Exi Min Hostile Shots Fired 105 | . 76 . 14 15 Missed 27 | . 17 . 5 5 Hits 78 | . 59 . 9 10 Projectile 78 | . 59 . 9 10 AOE 2 | . 2 . . . Critical Strikes 1 | . 1 . . . Damage Taken 874 | . 699 . 97 78 Core 250 | . 196 . . 54 Absorbed by Shields . | . . . . . Regen/Repaired (Parts) 5 | . 5 . . . Core Remaining (%) 100 | 100 . . . . Volleys Fired 45 | 13 27 . . 5 Largest 2 | 2 2 . . 2 Hottest 40 | 40 40 . . 40 Shots Fired 86 | 26 54 . . 6 Gun 86 | 26 54 . . 6 Cannon . | . . . . . Launcher . | . . . . . Special . | . . . . . Kinetic 86 | 26 54 . . 6 Thermal . | . . . . . Explosive . | . . . . . Electromagnetic . | . . . . . Robot Hit Streak 11 | 3 11 . . 3 Robot Miss Streak 3 | 3 2 . . 1 Penetration Max . | . . . . . Secondary Targets 3 | . 3 . . . Max Gunslinging Chain 1 | . 1 . . . Shots Hit Robots 54 | 15 35 . . 4 Core Hits 24 | 5 17 . . 2 Critical Kills . | . . . . . Critical Parts Destroyed . | . . . . . Critical Strikes . | . . . . . Melee Attacks . | . . . . . Impact . | . . . . . Slashing . | . . . . . Piercing . | . . . . . Sneak Attacks . | . . . . . Combat Hostiles . | . . . . . Follow-up Attacks . | . . . . . Damage Inflicted 631 | 179 423 . . 29 Guns 626 | 179 418 . . 29 Cannons . | . . . . . Explosions . | . . . . . Melee . | . . . . . Ramming 5 | . 5 . . . Kinetic 626 | 179 418 . . 29 Thermal . | . . . . . Explosive . | . . . . . Electromagnetic . | . . . . . Impact . | . . . . . Slashing . | . . . . . Piercing . | . . . . . Highest Corruption . | . . . . . Average Corruption . | . . . . . Corruption Purged . | . . . . . Corruption Blocked . | . . . . . Overload Shots . | . . . . . Overflow Damage . | . . . . . Projectiles . | . . . . . Explosions . | . . . . . Melee . | . . . . . Knockbacks . | . . . . . Impact . | . . . . . Kinetic . | . . . . . Secondary . | . . . . . Self-Inflicted Damage . | . . . . . Shots . | . . . . . Rammed 2 | . 2 . . . Targets Rammed 2 | . 2 . . . Kicked . | . . . . . Crushed . | . . . . . Highest Temperature 6 | . 6 . . . Average Temperature 5 | . 5 . . . Received Heat Transfer 96 | . 42 . 54 . Siege Activations . | . . . . . Martial Activations . | . . . . . Shielding Activations . | . . . . . Robots Disrupted . | . . . . . Combat Hostiles . | . . . . . Robots Corrupted . | . . . . . Combat Hostiles . | . . . . . Parts Fried . | . . . . . Impact Corruptions . | . . . . . Robots Melted . | . . . . . Combat Hostiles . | . . . . . Parts Melted . | . . . . . Heat Transferred . | . . . . . Parts Sabotaged . | . . . . . Parts Stolen . | . . . . . Parts Stripped . | . . . . . Power Chain Reactions . | . . . . . Alert | -11 -10 -10 -10 -9 ------- Run | Yrd Mat Min Exi Min Maximum Alert Level . | . . . . . Low Security (%) 100 | 100 100 100 . 100 Level 1 . | . . . . . Level 2 . | . . . . . Level 3 . | . . . . . Level 4 . | . . . . . Level 5 . | . . . . . High Security . | . . . . . Max Security . | . . . . . Peak Influence 139 | 10 139 47 . 20 Initial 47 | . . 47 . . Average 22 | . 29 7 . 8 Influence Increases 306 | 15 271 . . 20 Destroy 0b10 Robot/C 240 | . 220 . . 20 Destroy 0b10 Robot/NC 35 | 15 20 . . . Destroy Leader 30 | . 30 . . . Destroy Structure 1 | . 1 . . . Influence Decreases 286 | 15 148 123 . . Entered New Map 76 | . . 76 . . Time Decay 180 | 15 118 47 . . Lost Part 30 | . 30 . . . Squads Dispatched 1 | . 1 . . . Investigation . | . . . . . Extermination . | . . . . . Reinforcement 1 | . 1 . . . Assault . | . . . . . Garrison . | . . . . . Intercept . | . . . . . Searches Triggered . | . . . . . Construction Impeded . | . . . . . Haulers Reinforced . | . . . . . Active Scanning Responses . | . . . . . Cargo Convoy Interrupts . | . . . . . Stealth | -11 -10 -10 -10 -9 --------- Run | Yrd Mat Min Exi Min Distress Signals . | . . . . . Communications Jammed . | . . . . . Distress Signals . | . . . . . Times Spotted 22 | . 16 . 3 3 Peak Tracking Total 5 | . 5 . 2 3 Tactical Retreats . | . . . . . Traps | -11 -10 -10 -10 -9 ------- Run | Yrd Mat Min Exi Min Traps Triggered . | . . . . . Indirectly . | . . . . . Trap Hack Attempts . | . . . . . Triggered . | . . . . . Disarmed . | . . . . . Reprogrammed . | . . . . . Reused . | . . . . . Traps Extracted . | . . . . . Installed . | . . . . . Triggered . | . . . . . Machines | -11 -10 -10 -10 -9 ---------- Run | Yrd Mat Min Exi Min Machines Disabled . | . . . . . Max in Single Turn . | . . . . . Machines Repaired . | . . . . . Machines Dismantled . | . . . . . Machines Sabotaged . | . . . . . Overloaded Fab Kills . | . . . . . Hacking | -11 -10 -10 -10 -9 --------- Run | Yrd Mat Min Exi Min Machines Accessed 5 | . 4 . 1 . Terminals 3 | . 3 . . . Fabricators . | . . . . . Repair Stations 1 | . 1 . . . Recycling Units . | . . . . . Scanalyzers . | . . . . . Garrison Access . | . . . . . Total Hacks 12 | . 11 . 1 . Successful 6 | . 5 . 1 . Failed 6 | . 6 . . . Catastrophic 3 | . 3 . . . Database Lockouts . | . . . . . Manual 8 | . 7 . 1 . Terminals 7 | . 7 . . . Fabricators . | . . . . . Repair Stations 4 | . 4 . . . Recycling Units . | . . . . . Scanalyzers . | . . . . . Garrison Access . | . . . . . Terminal Hacks 2 | . 1 . 1 . Terminal Index 1 | . 1 . . . Proto ID Catalog 1 | . . . 1 . Fabricator Hacks . | . . . . . Repair Station Hacks 3 | . 3 . . . Scan Component 2 | . 2 . . . Repair 1 | . 1 . . . Recycling Unit Hacks . | . . . . . Scanalyzer . | . . . . . Garrison Access Hacks . | . . . . . Unauthorized Hacks 1 | . 1 . . . Terminals 1 | . 1 . . . Operators 1 | . 1 . . . Fabricators . | . . . . . Repair Stations . | . . . . . Recycling Units . | . . . . . Scanalyzers . | . . . . . Garrison Access . | . . . . . Data Cores Recovered . | . . . . . Used . | . . . . . Hacking Detections 2 | . 2 . . . Full Trace Events . | . . . . . Feedback Events . | . . . . . Feedback Blocked . | . . . . . Robot Schematics Acquired . | . . . . . Robots Built . | . . . . . Authchips . | . . . . . Time . | . . . . . Total Robot Build Rating . | . . . . . Part Schematics Acquired . | . . . . . Parts Built . | . . . . . Authchips . | . . . . . Time . | . . . . . Total Part Build Rating . | . . . . . Part Studies Acquired . | . . . . . Parts Repaired 1 | . 1 . . . Time 36 | . 36 . . . Parts Recycled . | . . . . . Recycled Matter . | . . . . . Retrieved Matter . | . . . . . Retrieved Components . | . . . . . Parts Scanalyzed . | . . . . . Part Schematics Acquired . | . . . . . Parts Damaged . | . . . . . Bothacking | -11 -10 -10 -10 -9 ------------ Run | Yrd Mat Min Exi Min Used RIF Installer . | . . . . . Robots Hacked . | . . . . . Non-combat . | . . . . . Combat . | . . . . . Robot Hacks Applied . | . . . . . Relay Couplers Released . | . . . . . Fabnet Peak Effective % . | . . . . . Robots Rewired . | . . . . . Allies Hacked . | . . . . . Hacks Repelled . | . . . . . Allies | -11 -10 -10 -10 -9 -------- Run | Yrd Mat Min Exi Min Total Allies . | . . . . . Largest Group . | . . . . . Highest-Rated Group . | . . . . . Highest-Rated Ally . | . . . . . Total Orders . | . . . . . Ally Attacks . | . . . . . Total Damage . | . . . . . Kills . | . . . . . Allies Corrupted . | . . . . . Allies Melted . | . . . . . Intel | -11 -10 -10 -10 -9 ------- Run | Yrd Mat Min Exi Min Active Infowar (turns) 1015 | 8 1007 . . . Seismic 1015 | 8 1007 . . . Robot Analysis Total . | . . . . . Derelict Logs Recovered . | . . . . . Drone Launches . | . . . . . Drone Recoveries . | . . . . . Exploration | -11 -10 -10 -10 -9 ------------- Run | Yrd Mat Min Exi Min Turns Passed 3129 | 251 1562 375 932 9 Spaces Moved 865 | 128 442 79 216 . Core 6 | 6 . . . . Treads 825 | 122 442 79 182 . Legs . | . . . . . Wheels 34 | . . . 34 . Hover . | . . . . . Flight . | . . . . . Fastest Speed 50 | 50 160 480 135 . Average Speed 331 | 154 310 480 425 . Slowest Speed 480 | 160 480 480 480 . Overloaded Moves . | . . . . . Propulsion Burnouts . | . . . . . Robots Hopped . | . . . . . Potential Cave-ins . | . . . . . Cave-ins Triggered . | . . . . . Exploration Rate (%) 28 | 4 58 16 62 2 Regions Visited 4 Branch Regions 3 Pre-discovered Areas . | . . . . . Known Exits Taken . | . . . . . Unknown Exits Taken 4 | 1 1 1 1 . Scrap Searched 1 | . . 1 . . Spaces Dug . | . . . . . Terrain Destroyed . | . . . . . Melee . | . . . . . Projectile . | . . . . . AOE . | . . . . . Terrain Rammed . | . . . . . Walls Destroyed . | . . . . . Machines Disabled . | . . . . . Actions | -11 -10 -10 -10 -9 --------- Run | Yrd Mat Min Exi Min Total 1044 | 154 579 78 228 5 Wait 109 | 1 98 . 10 . Move 861 | 127 441 78 215 . Hop . | . . . . . Pick Up 13 | 6 6 . 1 . Fast Attach 8 | 7 1 . . . Attach 2 | . 1 . 1 . Detach . | . . . . . Swap 4 | . 3 . 1 . Drop . | . . . . . Fire 45 | 13 27 . . 5 Melee . | . . . . . Ram . | . . . . . Kick . | . . . . . Crush 2 | . 2 . . . Escape Stasis . | . . . . . Rewire . | . . . . . Trap . | . . . . . Miscellaneous . | . . . . . Route ------- -11/Scrapyard -10/Materials (discovered 4 exits: [*Mat] / [*Min x2] / [*Sub]) -10/Mines -10/Exiles -9/Mines History --------- Turn | Location | Event 9 | -11/Scrapyard | Discovered new exit (range 15) 252 | -11/Scrapyard | Entered Materials 253 | -10/Materials | Met a group of wandering Federalists 303 | -10/Materials | Build established: Mutant 349 | -10/Materials | Repaired Broken Seismic Detector 568 | -10/Materials | Discovered new exit (range 12) 638 | -10/Materials | Discovered new exit (range 12) 1204 | -10/Materials | Discovered new exit (range 5) 1559 | -10/Materials | Discovered new exit (range 8) 1560 | -10/Materials | Core integrity fell below 50% 1814 | -10/Materials | Entered Mines 1828 | -10/Mines | Met a Derelict bent on vengeance 1838 | -10/Mines | Found a hidden stash of uninstalled traps 2165 | -10/Mines | Deemed a non-threat by the Exiles lab entrance 2170 | -10/Mines | Discovered new exit (range 5) 2189 | -10/Mines | Entered Exiles 2309 | -10/Exiles | Met 8R-AWN 2377 | -10/Exiles | Met EX-HEX 2516 | -10/Exiles | Met EX-BIN 2583 | -10/Exiles | Aligned with FarCom system 2588 | -10/Exiles | Given EX-Vault access code 2713 | -10/Exiles | Opened EX-Vault 2741 | -10/Exiles | Found Cloak of Protection 2829 | -10/Exiles | Warned to stay clear of 0b10 Research branches 2907 | -10/Exiles | Exiles lab attacked by MAIN.C 3109 | -10/Exiles | Discovered new exit (range 11) 3121 | -10/Exiles | Left Exiles lab with Cloak of Protection 3121 | -10/Exiles | Entered Mines 3123 | -9/Mines | Core integrity fell below 20% 3130 | -9/Mines | Destroyed by S-10 Pest with Light Assault Rifle Last Messages --------------- Machine disabled. HV Slug penetrates D-53 Grenadier. D-53 Grenadier suffers critical hit (Destroy). D-53 Grenadier destroyed. Slug penetrates DAS Turret. Machine disabled. DAS Turret suffers critical hit (Destroy). Slug penetrates Machine. Slug penetrates DAS Turret. Slug penetrates Machine. Slug penetrates DAS Turret. DAS Turret destroyed. EXIT=FOUND LOCATION=UNKNOWN GOAL=ESCAPE Receiving FarCom transmissions... 5L-KAT: "That was close. Too bad in all the rush we got split up from the others." Assault Rifle destroyed. S-10 Pest destroyed. Map ----- +----------------------------------------------------+ | ?????????????????????????????????????????????????? | | ?????????????????????????????????????????????????? | | ?????????????????????????????????????????????????? | | ?????????????????????????????????????????????????? | | ?????????????????????????????????????????????????? | | ?????????????????????????????????????????????????? | | ?????????????????????????????????????????????????? | | ?????????????????????????????????????????????????? | | ?????????????????????????????????????????????????? | | ?????????????????????????????????????????????????? | | ?????????????????????????????????????????????????? | | ?????????????????????????????????????????????????? | | ?????????????????????????????????????????????????? | | ?????????????????????????????????????????????????? | | ?????????????????????????????????????????????????? | | ?????????????????????????????????????????????????? | | ?????????????????????????????????????????????????? | | ?????????????????????????????????????????????????? | | ?????????????????????????????????????????????????? | | ?????????????????????????????????????????????????? | | ?????????????????????????????????????????????????? | | ?????????????????????????????????????????????????? | | ?????????????????????????????????????????????????? | | ?????????????????????#######?????????????????????? | | ?????????????????????# #?????????????????????? | | ?????????????????????# %@ #?????????????????????? | | ?????????????? z s#?????????????????????? | | ??????????# ######## """ #?????????????????????? | | ?????????????????????# """s#?????????????????????? | | ?????????????????????# """ #?????????????????????? | | ?????????????????????# #?????????????????????? | | ?????????????????????# #?????????????????????? | | ?????????????????????#######?????????????????????? | | ?????????????????????????????????????????????????? | | ?????????????????????????????????????????????????? | | ?????????????????????????????????????????????????? | | ?????????????????????????????????????????????????? | | ?????????????????????????????????????????????????? | | ?????????????????????????????????????????????????? | | ?????????????????????????????????????????????????? | | ?????????????????????????????????????????????????? | | ?????????????????????????????????????????????????? | | ?????????????????????????????????????????????????? | | ?????????????????????????????????????????????????? | | ?????????????????????????????????????????????????? | | ?????????????????????????????????????????????????? | | ?????????????????????????????????????????????????? | | ?????????????????????????????????????????????????? | | ?????????????????????????????????????????????????? | | ?????????????????????????????????????????????????? | +----------------------------------------------------+ Best States ------------- Heat Dissipation 25 Energy Generation 10 Energy Capacity 125 Matter Stores 300 Matter Capacity 300 Sight Range 16 Terrain Scan Density 10 Evasion (%) 40 Targeting Accuracy 5 Recoil Reduction 2 Item Schematics ----------------- None Robot Schematics ------------------ None Fabricated ------------ Nothing Repaired ---------- Seismic Detector | 75% | -10/Materials | Broken Studied --------- None Alien Tech Used ----------------- None Achievements -------------- None Challenges ------------ None Game ------ Seed PlasmaTrackerTether Manual? 0 Play Time 00:11:22 Cumulative 20.0 hours Start 2026.09.07 @ 20:39:57 End 2026.09.07 @ 20:52:04 Sessions 1 Manual Loads 0 Difficulty Rogue Special Mode None Game No. 51 Rogue 43 Adventurer 0 Explorer 8 Win Type - Total 1 Types 1/0/0/0/0/0/0/0/0/0 Lore% 7 Gallery% 18 Achievement% 23 Wizard Run 0 Options --------- Layout 1 ASCII 0 Keyboard 0 Movement Numpad Keybinds 0 Fullscreen 1 Font 24/Smallcaps Map View 50x35 Zoom Use 0% Tactical HUD 0 Map Filters NONE Filters NONE Steam 1 RUN: addccadc-711f-418f-b3f1-712c1ef9e482